Cogmind - Beta 16.1 @@@ ROGUE MODE // 2026.04.24 @ 13:50:55 Player: Bereft Result: Destroyed by S-10 Pest with Light Assault Rifle Performance ------------- Evolutions (1) 500 Regions Visited (2) 400 Robots Destroyed (2) 10 Value Destroyed (81) 81 Prototype IDs (0) 0 Alien Tech Used (0) 0 Bonus (200) 200 TOTAL SCORE: 1191 Bonus ------- Pacifist 200 Cogmind --------- Core Integrity 0/400 Matter 235/300 Energy 100/100 System Corruption 2% Temperature Cool (0) Movement Core (50) Location -9/Materials Parts ------- > --- POWER (1) -------- (None) > --- PROPULSION (3) --- (None) > --- UTILITY (3) ------ Visual Processing Unit > --- WEAPON (2) ------- (None) > --- INVENTORY (5) ---- (None) Peak State ------------ > --- POWER ------------ Backup Power I > --- PROPULSION ------- Backup Propulsion I Backup Propulsion I > --- UTILITY ---------- Targeting Computer Backup Plating I Backup Plating I > --- WEAPON ----------- Backup Laser I Backup Laser I > --- INVENTORY -------- (None) [Rating: 8] Favorites ----------- Power Backup Power I Engine Backup Power I Propulsion Backup Propulsion I Hover Unit Backup Propulsion I Utility Backup Plating I Processor Targeting Computer Protection Backup Plating I Weapon Backup Laser I Energy Gun Backup Laser I Build | -11 -10 -9 ------- Run | Yrd Mat Mat Slots Evolved 2 | . . 2 Power . | . . . Propulsion 1 | . . 1 Utility 1 | . . 1 Weapon . | . . . Parts Attached 2 | . . 2 Power . | . . . Engine . | . . . Core . | . . . Reactor . | . . . Propulsion . | . . . Treads . | . . . Leg . | . . . Wheel . | . . . Hover . | . . . Flight . | . . . Utility 2 | . . 2 Device . | . . . Storage . | . . . Processor 2 | . . 2 Hackware . | . . . Protection . | . . . Artifact . | . . . Weapon . | . . . Energy Gun . | . . . Energy Cannon . | . . . Ballistic Gun . | . . . Ballistic Cannon . | . . . Launcher . | . . . Special Weapon . | . . . Impact Weapon . | . . . Slashing Weapon . | . . . Piercing Weapon . | . . . Special Melee Weapon . | . . . Unidentified Prototypes . | . . . Parts Lost 5 | . . 5 Power 1 | . . 1 Propulsion 2 | . . 2 Utility 2 | . . 2 Weapon . | . . . Highest Loss Streak 5 | . . 5 To Critical Strikes . | . . . Average Backups . | . . . Power . | . . . Propulsion . | . . . Utility . | . . . Weapon . | . . . Tool/Special . | . . . Unused Backups . | . . . Power . | . . . Propulsion . | . . . Utility . | . . . Weapon . | . . . Tool/Special . | . . . Average Slot Usage (%) 41 | . 55 34 Engine 4 | . 7 3 Hover 10 | . 15 7 Processor 3 | . . 5 Protection 10 | . 15 8 Energy Gun 11 | . 15 9 Peak Build Rating 8 | . 7 8 Average Rating 3 | . 3 3 On Entrance 2 | . . 7 Avg Prop Armor Cover (%) . | . . . Naked Turns 105 | . 35 70 Heaviest Build 5 | . 5 5 Greatest Support 12 | 3 12 12 Greatest Overweight (x) . | . . . Average Overweight (x) . | . . . Largest Inventory Capacity 5 | 5 5 5 Average Capacity 5 | 5 5 5 Most Carried 1 | . 1 1 Average Carried . | . . . Final Capacity 5 | 5 5 5 Final Carried 1 | . 1 . Class Distribution -------------------- 100% | Mutant Dominant Class ---------------- Mutant | -10/Materials Mutant | -9/Materials Resources | -11 -10 -9 ----------- Run | Yrd Mat Mat Matter Collected 105 | . . 105 Remotely . | . . . Salvage Created 105 | . . 105 Parts 2 | . . 2 Haulers Intercepted . | . . . Recyclers Shooed . | . . . Parts Field Recycled . | . . . Retrieved Matter . | . . . Parts Self-Destructed . | . . . Prevented . | . . . Parts Restored . | . . . Kills | -11 -10 -9 ------- Run | Yrd Mat Mat Combat Hostiles Destroyed 2 | . . 2 Guns 2 | . . 2 Classes Destroyed 1 | . . 1 Grunt 2 | . . 2 Best Kill Streak 2 | . . 2 Combat Bots Only 2 | . . 2 Max Kills in Single Turn 1 | . . 1 Gunslinging . | . . . Exploded . | . . . Melee . | . . . Uniques/NPCs Destroyed . | . . . Combat | -11 -10 -9 -------- Run | Yrd Mat Mat Hostile Shots Fired 86 | . . 86 Missed 27 | . . 27 Hits 59 | . . 59 Projectile 59 | . . 59 Damage Taken 705 | 3 . 702 Core 406 | 3 . 403 Absorbed by Shields . | . . . Core Remaining (%) 98 | 98 98 . Volleys Fired 12 | . . 12 Largest 2 | . . 2 Hottest 60 | . . 60 Shots Fired 24 | . . 24 Gun 24 | . . 24 Cannon . | . . . Launcher . | . . . Special . | . . . Kinetic . | . . . Thermal 24 | . . 24 Explosive . | . . . Electromagnetic . | . . . Robot Hit Streak 14 | . . 14 Robot Miss Streak 4 | . . 4 Penetration Max . | . . . Secondary Targets 1 | . . 1 Max Gunslinging Chain 1 | . . 1 Shots Hit Robots 16 | . . 16 Core Hits 8 | . . 8 Critical Kills . | . . . Critical Parts Destroyed . | . . . Critical Strikes . | . . . Melee Attacks . | . . . Impact . | . . . Slashing . | . . . Piercing . | . . . Sneak Attacks . | . . . Combat Hostiles . | . . . Follow-up Attacks . | . . . Damage Inflicted 199 | 6 . 193 Guns 164 | . . 164 Cannons . | . . . Explosions . | . . . Melee . | . . . Ramming 35 | 6 . 29 Kinetic . | . . . Thermal 164 | . . 164 Explosive . | . . . Electromagnetic . | . . . Impact . | . . . Slashing . | . . . Piercing . | . . . Highest Corruption 2 | . . 2 Average Corruption 2 | . . 2 Corruption Purged . | . . . Corruption Blocked . | . . . Effects 1 | . . 1 Data Loss (minor) 1 | . . 1 Overload Shots . | . . . Overflow Damage . | . . . Projectiles . | . . . Explosions . | . . . Melee . | . . . Knockbacks . | . . . Impact . | . . . Kinetic . | . . . Secondary . | . . . Self-Inflicted Damage 16 | 3 . 13 Shots . | . . . Rammed 7 | 1 . 6 Targets Rammed 7 | 1 . 6 Kicked . | . . . Crushed . | . . . Highest Temperature 62 | . . 62 Average Temperature 35 | . . 35 Received Heat Transfer 249 | . . 249 Siege Activations . | . . . Martial Activations . | . . . Shielding Activations . | . . . Robots Disrupted . | . . . Combat Hostiles . | . . . Robots Corrupted . | . . . Combat Hostiles . | . . . Parts Fried . | . . . Impact Corruptions . | . . . Robots Melted . | . . . Combat Hostiles . | . . . Parts Melted . | . . . Heat Transferred 666 | . . 666 Parts Sabotaged . | . . . Parts Stolen . | . . . Parts Stripped . | . . . Power Chain Reactions . | . . . Alert | -11 -10 -9 ------- Run | Yrd Mat Mat Maximum Alert Level . | . . . Low Security (%) 100 | 100 100 100 Level 1 . | . . . Level 2 . | . . . Level 3 . | . . . Level 4 . | . . . Level 5 . | . . . High Security . | . . . Max Security . | . . . Peak Influence 105 | . 6 105 Initial . | . . . Average 7 | . . 11 Influence Increases 201 | . 6 195 Destroy 0b10 Robot/C 40 | . . 40 Destroy Leader 10 | . . 10 Trap Triggered on 0b10 10 | . . 10 Successful Hack 6 | . 6 . Lose Combat Pursuer 135 | . . 135 Influence Decreases 96 | . 6 90 Time Decay 46 | . 6 40 Lost Part 50 | . . 50 Squads Dispatched 3 | . . 3 Investigation 1 | . . 1 Extermination . | . . . Reinforcement 2 | . . 2 Assault . | . . . Garrison . | . . . Intercept . | . . . Searches Triggered . | . . . Construction Impeded . | . . . Haulers Reinforced . | . . . Active Scanning Responses . | . . . Cargo Convoy Interrupts . | . . . Stealth | -11 -10 -9 --------- Run | Yrd Mat Mat Distress Signals 4 | . . 4 Communications Jammed . | . . . Distress Signals . | . . . Times Spotted 21 | . . 21 Peak Tracking Total 10 | . . 10 Tactical Retreats 2 | . . 2 Traps | -11 -10 -9 ------- Run | Yrd Mat Mat Traps Triggered . | . . . Indirectly . | . . . Trap Hack Attempts . | . . . Triggered . | . . . Disarmed . | . . . Reprogrammed 1 | . . 1 Reused 1 | . . 1 Traps Extracted . | . . . Installed . | . . . Triggered 1 | . . 1 Machines | -11 -10 -9 ---------- Run | Yrd Mat Mat Machines Disabled . | . . . Max in Single Turn . | . . . Machines Repaired . | . . . Machines Dismantled . | . . . Machines Sabotaged . | . . . Overloaded Fab Kills . | . . . Hacking | -11 -10 -9 --------- Run | Yrd Mat Mat Machines Accessed 4 | . 1 3 Terminals 3 | . . 3 Fabricators . | . . . Repair Stations 1 | . 1 . Recycling Units . | . . . Scanalyzers . | . . . Garrison Access . | . . . Total Hacks 10 | . 2 8 Successful 4 | . 1 3 Failed 6 | . 1 5 Catastrophic . | . . . Database Lockouts . | . . . Manual . | . . . Terminals 8 | . . 8 Fabricators . | . . . Repair Stations 2 | . 2 . Recycling Units . | . . . Scanalyzers . | . . . Garrison Access . | . . . Terminal Hacks 3 | . . 3 Reprogram Traps 1 | . . 1 Transport Status 1 | . . 1 Recall Investigation 1 | . . 1 Fabricator Hacks . | . . . Repair Station Hacks 1 | . 1 . Refit 1 | . 1 . Recycling Unit Hacks . | . . . Scanalyzer . | . . . Garrison Access Hacks . | . . . Unauthorized Hacks . | . . . Terminals . | . . . Fabricators . | . . . Repair Stations . | . . . Recycling Units . | . . . Scanalyzers . | . . . Garrison Access . | . . . Data Cores Recovered . | . . . Used . | . . . Hacking Detections 2 | . . 2 Full Trace Events 1 | . . 1 Feedback Events . | . . . Feedback Blocked . | . . . Robot Schematics Acquired . | . . . Robots Built . | . . . Authchips . | . . . Time . | . . . Total Robot Build Rating . | . . . Part Schematics Acquired . | . . . Parts Built . | . . . Authchips . | . . . Time . | . . . Total Part Build Rating . | . . . Part Studies Acquired . | . . . Parts Repaired . | . . . Time . | . . . Parts Recycled . | . . . Recycled Matter . | . . . Retrieved Matter . | . . . Retrieved Components . | . . . Parts Scanalyzed . | . . . Part Schematics Acquired . | . . . Parts Damaged . | . . . Bothacking | -11 -10 -9 ------------ Run | Yrd Mat Mat Used RIF Installer . | . . . Robots Hacked . | . . . Non-combat . | . . . Combat . | . . . Robot Hacks Applied . | . . . Relay Couplers Released . | . . . Fabnet Peak Effective % . | . . . Robots Rewired . | . . . Allies Hacked . | . . . Hacks Repelled . | . . . Allies | -11 -10 -9 -------- Run | Yrd Mat Mat Total Allies . | . . . Largest Group . | . . . Highest-Rated Group . | . . . Highest-Rated Ally . | . . . Total Orders . | . . . Ally Attacks . | . . . Total Damage . | . . . Kills . | . . . Allies Corrupted . | . . . Allies Melted . | . . . Intel | -11 -10 -9 ------- Run | Yrd Mat Mat Active Infowar (turns) 42 | . . 42 Optics 42 | . . 42 Robot Analysis Total . | . . . Derelict Logs Recovered . | . . . Drone Launches . | . . . Drone Recoveries . | . . . Exploration | -11 -10 -9 ------------- Run | Yrd Mat Mat Turns Passed 276 | 10 80 186 Spaces Moved 374 | 17 127 230 Core 268 | 17 68 183 Treads . | . . . Legs . | . . . Wheels . | . . . Hover 106 | . 59 47 Flight . | . . . Fastest Speed 50 | 50 50 50 Average Speed 57 | 50 62 55 Slowest Speed 76 | 50 76 76 Overloaded Moves . | . . . Propulsion Burnouts . | . . . Robots Hopped . | . . . Potential Cave-ins . | . . . Cave-ins Triggered . | . . . Exploration Rate (%) 15 | 3 20 23 Regions Visited 2 Branch Regions . Pre-discovered Areas . | . . . Known Exits Taken . | . . . Unknown Exits Taken 2 | 1 1 . Scrap Searched . | . . . Spaces Dug . | . . . Terrain Destroyed . | . . . Melee . | . . . Projectile . | . . . AOE . | . . . Terrain Rammed . | . . . Walls Destroyed . | . . . Machines Disabled . | . . . Actions | -11 -10 -9 --------- Run | Yrd Mat Mat Total 408 | 17 127 264 Wait 14 | . . 14 Move 372 | 16 126 230 Hop . | . . . Pick Up 1 | . 1 . Fast Attach 1 | . . 1 Attach 1 | . . 1 Detach . | . . . Swap . | . . . Drop . | . . . Fire 12 | . . 12 Melee . | . . . Ram 7 | 1 . 6 Kick . | . . . Crush . | . . . Escape Stasis . | . . . Rewire . | . . . Trap . | . . . Miscellaneous . | . . . Route ------- -11/Scrapyard -10/Materials -9/Materials History --------- Turn | Location | Event 3 | -11/Scrapyard | Discovered new exit (range 15) 11 | -11/Scrapyard | Entered Materials 83 | -10/Materials | Discovered new exit (range 10) 91 | -10/Materials | Entered another Materials area 91 | -9/Materials | Evolved 2 slots: Propulsion x1, Utility x1 165 | -9/Materials | Released all parts (3) 193 | -9/Materials | Lost 5 parts (1p2n2u) 202 | -9/Materials | Core integrity fell below 50% 250 | -9/Materials | Core integrity fell below 20% 277 | -9/Materials | Destroyed by S-10 Pest with Light Assault Rifle Last Messages --------------- Establishing remote squad link... No tasked investigation squads found. >>Traps(Reprogram) Reprogrammed 1 Blade Trap. ALERT: Suspicious activity at Terminal M011. Dispatching Investigation squad. Slammed into Y-45 Defender. Acquired 50 matter. Acquired Visual Processing Unit. Slammed into O-16 Technician. O-16 Technician sends out distress signal. O-16 Technician: "IFF HANDSHAKE FAILED. SECURING TERMINAL." ALERT: Hostiles spotted, dispatching reinforcements to Terminal M002. Slammed into S-10 Pest. Destabilizing: System corrupted (+2). Slammed into S-10 Pest. Destabilizing: Core damaged (-16). System corrupted: Component data lost. Map ----- +----------------------------------------------------+ | ?????????????????????????????????????????? """ | | ?????????????????????????????????????????? | | ??????????????????????????????????????????? | | ???????????????????????????????????????????# """ | | ???????????????????????????????????????????# """ | | ???????????????????????????????????????????# """ | | ???????????????????????????????????????????# | | ???????????????????????????????????????????# | | ???????????????????????????????????????????# | | ??????????????????????????????????????????## !] | | ?????????????#####?????#################### ]] | | ?????????????# ##### | | ?????????????# ############## | | ?????????????# " #????????????## ##### | | ?????????????# """" #?????????????#+#???# | | ?????????????????"""" # #???????????????????? | | ??????????????????""" ?###+######????????????????? | | ?????????????????? ???# #?????????????? | | ???????????????????????# #??????????! | | ???????????????????????# #???????# """ | | ???????????????????????# """ #???????# ! """? | | ???????????????????????#""""" #???????# ""?? | | ???????????????????????#""""" #???????#? ??? | | ???????????????????????#""""" #??????????#?#???? | | ???????????????????????#s"""s #????????????????? | | ???????????????????????# @ s #????????????????? | | ???????????????????????##########????????????????? | | ?????????????????????????????????????????????????? | | ?????????????????????????????????????????????????? | | ?????????????????????????????????????????????????? | | ?????????????????????????????????????????????????? | | ?????????????????????????????????????????????????? | | ?????????????????????????????????????????????????? | | ?????????????????????????????????????????????????? | | ???????????????????????????????????????????####### | | ???????????????????????????????????????????# | | ???????????????????????????????????????????# | | ?????????????????????????????????########### | | ?????????????????????????????????# + ### | | ?????????????????????????????????# # # | | ?????????????????????????????????# """ # # T | | ?????????????????????????????????# """ # # | | ?????????????????????????????????# """ " ##### | | ?????????????????????????????????# """ T #???# | | ?????????????????????????????????# """ " #???# | | ?????????????????????????????????# #???### | | ?????????????????????????????????###########?????? | | ?????????????????????????????????????????????????? | | ?????????????????????????????????????????????????? | | ?????????????????????????????????????????????????? | +----------------------------------------------------+ Best States ------------- Heat Dissipation 28 Energy Generation 9 Energy Capacity 100 Matter Stores 230 Matter Capacity 300 Sight Range 18 Terrain Scan Density 10 Armor Coverage 160 Evasion (%) 50 Targeting Accuracy 5 Item Schematics ----------------- None Robot Schematics ------------------ None Fabricated ------------ Nothing Repaired ---------- Nothing Studied --------- None Alien Tech Used ----------------- None Achievements -------------- None Challenges ------------ None Game ------ Seed RegenerativeShrapnelShifter Manual? 0 Play Time 00:08:02 Cumulative 24.1 hours Start 2026.04.24 @ 13:45:23 End 2026.04.24 @ 13:50:55 Sessions 1 Manual Loads 0 Difficulty Rogue Special Mode None Game No. 40 Rogue 40 Adventurer 0 Explorer 0 Win Type - Total 0 Types 0/0/0/0/0/0/0/0/0/0 Lore% 22 Gallery% 22 Achievement% 21 Wizard Run 0 Options --------- Layout 1 ASCII 0 Keyboard 0 Movement Numpad Keybinds 0 Fullscreen 1 Font 32/SmallcapsGlow Map View 50x35 Zoom Use 0% Tactical HUD 0 Map Filters NONE Filters NONE Steam 1 RUN: b0dd288d-9cae-4c48-aa7b-038362c1739f